[Event "29th Czech Open-Rapid 2018"]
[Site "Pardubice"]
[Date "2018.07.18"]
[Round "3"]
[White "Domogaev, Sergey"]
[Black "Stocek, Jiri"]
[Result "1/2-1/2"]
[ECO "E12"]
[WhiteElo "2414"]
[BlackElo "2586"]
[Annotator "ChessBase"]
[PlyCount "124"]
[EventDate "2018.07.18"]
[EventType "swiss"]
[EventCountry "CZE"]
[SourceTitle "playchess.com"]
[Source "ChessBase"]
[SourceQuality "1"]
[TimeControl "900+10"]

1. d4 {[%emt 0:00:00]} Nf6 {[%emt 0:00:00]} 2. c4 {[%emt 0:00:00]} e6 {[%emt 0:00:00]} 3. Nf3 {[%emt 0:00:00]} b6 {[%emt 0:00:05]} 4. Bg5 {[%emt 0:00:02]} h6 {[%emt 0:00:07]} 5. Bh4 {[%emt 0:00:02]} c5 {[%emt 0:00:40]} 6. d5 {[%emt 0:00:22]} Ba6 {[%emt 0:01:21]} 7. e3 {[%emt 0:00:23]} exd5 {[%emt 0:00:35]} 8. cxd5 {[%emt 0:00:01]} Bxf1 {[%emt 0:00:08]} 9. Kxf1 {[%emt 0:00:41]} d6 {[%emt 0:00:03]} 10. Nc3 {[%emt 0:00:01]} Be7 {[%emt 0:00:18]} 11. h3 {[%emt 0:00:05]} O-O {[%emt 0:00:05]} 12. g4 {[%emt 0:00:04]} Na6 {[%emt 0:00:32]} 13. Bg3 {[%emt 0:00:03]} Nc7 {[%emt 0:00:14]} 14. e4 {[%emt 0:01:04]} Re8 {[%emt 0:00:45]} 15. Nd2 {[%emt 0:00:16]} b5 {[%emt 0:00:14]} 16. Kg2 {[%emt 0:00:32]} Nd7 {[%emt 0:00:11]} 17. Rc1 {[%emt 0:00:28]} Nb6 {[%emt 0:00:05]} 18. b3 {[%emt 0:00:03]} Bf6 {[%emt 0:00:45]} 19. Re1 {[%emt 0:00:08]} a5 {[%emt 0:00:18]} 20. a4 {[%emt 0:00:10]} Bxc3 {[%emt 0:01:09]} 21. Rxc3 {[%emt 0:00:02]} Qd7 {[%emt 0:00:02]} 22. axb5 {[%emt 0:00:16]} Nxb5 {[%emt 0:00:05]} 23. Rce3 {[%emt 0:00:03]} Nd4 {[%emt 0:00:49]} 24. Nf3 {[%emt 0:02:05]} Nxf3 {[%emt 0:00:08]} 25. Qxf3 {[%emt 0:00:03]} a4 {[%emt 0:00:43]} 26. bxa4 {[%emt 0:00:02]} Rxa4 {[%emt 0:00:02]} 27. Qd1 {[%emt 0:00:43]} f6 {[%emt 0:01:23]} 28. Rb3 {[%emt 0:00:35]} Nc8 {[%emt 0:04:16]} 29. Qb1 {[%emt 0:00:31]} Ra7 {[%emt 0:00:29]} 30. Rb8 {[%emt 0:00:06]} Kf7 {[%emt 0:00:10]} 31. Re3 {[%emt 0:00:02]} Qa4 {[%emt 0:00:52]} 32. Qb5 {[%emt 0:00:24]} Qxb5 {[%emt 0:00:14]} 33. Rxb5 {[%emt 0:00:02]} Ra8 {[%emt 0:00:17]} 34. Rb7+ {[%emt 0:00:12]} Re7 {[%emt 0:00:03]} 35. Reb3 {[%emt 0:00:09]} Ra7 {[%emt 0:00:21]} 36. Rb8 {[%emt 0:00:02]} Rec7 {[%emt 0:00:11]} 37. h4 {[%emt 0:00:16]} Ke7 {[%emt 0:00:23]} 38. h5 {[%emt 0:00:02]} Kd7 {[%emt 0:00:04]} 39. Bf4 {[%emt 0:00:23]} Ra4 {[%emt 0:00:53]} 40. f3 {[%emt 0:01:59]} Ra6 {[%emt 0:00:02]} 41. Kg3 {[%emt 0:00:07]} c4 {[%emt 0:00:06]} 42. Rc3 {[%emt 0:00:02]} Rb6 {[%emt 0:00:04]} 43. Rxb6 {[%emt 0:00:20]} Nxb6 {[%emt 0:00:02]} 44. Be3 {[%emt 0:00:03]} Na4 {[%emt 0:00:09]} 45. Ra3 {[%emt 0:00:03]} Nb2 {[%emt 0:00:05]} 46. Bd4 {[%emt 0:00:11]} Nd3 {[%emt 0:00:06]} 47. f4 {[%emt 0:00:09]} Nc5 {[%emt 0:00:27]} 48. Bxc5 {[%emt 0:00:36]} Rxc5 {[%emt 0:00:01]} 49. Rc3 {[%emt 0:00:01]} Kc7 {[%emt 0:00:04]} 50. Kf3 {[%emt 0:00:00]} Kb6 {[%emt 0:00:02]} 51. Ke3 {[%emt 0:00:01]} Kb5 {[%emt 0:00:16]} 52. Kd4 {[%emt 0:00:06]} Kb4 {[%emt 0:00:03]} 53. Rc1 {[%emt 0:00:01]} c3 {[%emt 0:00:10]} 54. Kd3 {[%emt 0:00:51]} Rc4 {[%emt 0:00:58]} 55. Rb1+ {[%emt 0:00:18]} Kc5 {[%emt 0:00:01]} 56. Rb7 {[%emt 0:00:04]} Rd4+ {[%emt 0:00:01]} 57. Kxc3 {[%emt 0:00:01]} Rxe4 {[%emt 0:00:03]} 58. Rxg7 {[%emt 0:00:03]} Rxf4 {[%emt 0:00:06]} 59. Rg6 {[%emt 0:00:03]} Rf3+ {[%emt 0:00:26]} 60. Kd2 {[%emt 0:00:02]} Kxd5 {[%emt 0:00:02]} 61. Rxh6 {[%emt 0:00:02]} Ke4 {[%emt 0:00:15]} 62. Rg6 {[%emt 0:00:03]} Ke5 1/2-1/2

[Event "29th Czech Open-Rapid 2018"]
[Site "Pardubice"]
[Date "2018.07.18"]
[Round "3"]
[White "Lalic, Bogdan"]
[Black "Sadhwani, Raunak"]
[Result "0-1"]
[ECO "D44"]
[WhiteElo "2394"]
[BlackElo "2409"]
[Annotator "NA"]
[PlyCount "68"]
[EventDate "2018.07.18"]
[EventType "swiss"]
[EventCountry "CZE"]
[SourceTitle "playchess.com"]
[Source "ChessBase"]
[SourceQuality "1"]
[TimeControl "900+10"]

1. d4 {[%emt 0:00:00]} Nf6 {[%emt 0:00:00]} 2. c4 {[%emt 0:00:00]} e6 {[%emt 0:00:00]} 3. Nf3 {[%emt 0:00:00]} d5 {[%emt 0:00:00]} 4. Nc3 {[%emt 0:00:04]} c6 {[%emt 0:00:00]} 5. Bg5 {[%emt 0:00:06]} dxc4 {[%emt 0:00:00]} 6. a4 {[%emt 0:00:18]} h6 {[%emt 0:00:12]} 7. Bxf6 {[%emt 0:00:09]} Qxf6 {[%emt 0:00:02]} 8. e3 {[%emt 0:00:13]} a5 {[%emt 0:00:26]} 9. Bxc4 {[%emt 0:00:05]} Bb4 {[%emt 0:00:03]} 10. O-O O-O 11. Ne4 {[%emt 0:00:42]} Qe7 {[%emt 0:00:12]} 12. Ne5 {[%emt 0:00:15]} Nd7 {[%emt 0:00:02]} 13. f4 {[%emt 0:00:08]} Nb6 {[%emt 0:00:38]} 14. Bd3 {[%emt 0:00:24]} Bd7 {[%emt 0:00:14]} 15. Qh5 {[%emt 0:00:16]} Be8 {[%emt 0:00:19]} 16. Qh3 {[%emt 0:00:52]} f6 {[%emt 0:00:13]} 17. Nc4 {[%emt 0:00:21]} Nd5 {[%emt 0:00:40]} 18. Rf3 {[%emt 0:00:41]} b5 {[%emt 0:00:16]} 19. Na3 {[%emt 0:00:27]} f5 {[%emt 0:01:35]} 20. Nf2 {[%emt 0:00:38]} Bxa3 {[%emt 0:00:07]} 21. bxa3 {[%emt 0:00:36]} b4 {[%emt 0:00:20]} 22. g4 {[%emt 0:00:23]} Bg6 {[%emt 0:04:48]} 23. Rg3 {[%emt 0:00:16]} b3 {[%emt 0:00:29]} 24. gxf5 {[%emt 0:01:41]} Bxf5 {[%emt 0:00:02]} 25. Bxf5 {[%emt 0:00:49]} exf5 {[%emt 0:00:13]} 26. Qxh6 {[%emt 0:00:08]} Nc3 {[%emt 0:02:07]} 27. Qxc6 {[%emt 0:02:04]} Rfc8 {[%emt 0:01:16]} 28. Qg6 {[%emt 0:00:19]} b2 {[%emt 0:00:46]} 29. Re1 {[%emt 0:00:03]} Ne2+ {[%emt 0:00:12]} 30. Kg2 {[%emt 0:00:21]} Nxg3 {[%emt 0:00:01]} 31. Kxg3 {[%emt 0:00:05]} Rc1 {[%emt 0:00:34]} 32. Qxf5 {[%emt 0:00:02]} Rxe1 {[%emt 0:00:32]} 33. Qd5+ {[%emt 0:00:00]} Qf7 {[%emt 0:00:16]} 34. Qxa8+ {[%emt 0:00:01]} Kh7 {[%emt 0:00:02]} 0-1

[Event "29th Czech Open-Rapid 2018"]
[Site "Pardubice"]
[Date "2018.07.18"]
[Round "3"]
[White "Cerveny, Martin"]
[Black "Deepan Chakkravarthy J"]
[Result "0-1"]
[ECO "E11"]
[WhiteElo "2359"]
[BlackElo "2519"]
[Annotator "RC"]
[PlyCount "108"]
[EventDate "2018.07.18"]
[EventType "swiss"]
[EventCountry "CZE"]
[SourceTitle "playchess.com"]
[Source "ChessBase"]
[SourceQuality "1"]
[TimeControl "900+10"]

1. d4 {[%emt 0:00:00]} Nf6 {[%emt 0:00:00]} 2. Nf3 {[%emt 0:00:00]} e6 {[%emt 0:00:00]} 3. c4 {[%emt 0:00:00]} Bb4+ {[%emt 0:00:00]} 4. Bd2 {[%emt 0:00:02]} a5 {[%emt 0:00:00]} 5. g3 {[%emt 0:00:02]} O-O {[%emt 0:00:07]} 6. Bg2 {[%emt 0:00:03]} d6 {[%emt 0:00:06]} 7. O-O {[%emt 0:00:05]} Bxd2 {[%emt 0:00:03]} 8. Qxd2 {[%emt 0:00:04]} Qe7 {[%emt 0:00:06]} 9. Nc3 {[%emt 0:00:10]} c6 {[%emt 0:00:02]} 10. e4 {[%emt 0:02:02]} e5 {[%emt 0:00:01]} 11. Rfe1 {[%emt 0:00:02]} Bg4 {[%emt 0:00:14]} 12. Nh4 {[%emt 0:00:33]} Na6 {[%emt 0:00:28]} 13. h3 {[%emt 0:00:17]} Bd7 {[%emt 0:00:25]} 14. Nf5 {[%emt 0:00:50]} Bxf5 {[%emt 0:00:15]} 15. exf5 {[%emt 0:00:02]} Qc7 {[%emt 0:00:01]} 16. g4 {[%emt 0:01:14]} Rfe8 {[%emt 0:00:11]} 17. f4 {[%emt 0:01:16]} exd4 {[%emt 0:00:21]} 18. Qxd4 {[%emt 0:00:03]} Nb4 {[%emt 0:00:23]} 19. Rxe8+ {[%emt 0:01:16]} Rxe8 {[%emt 0:00:04]} 20. Rd1 {[%emt 0:00:07]} Nc2 {[%emt 0:00:33]} 21. Qf2 {[%emt 0:01:15]} Ne3 {[%emt 0:00:26]} 22. Re1 {[%emt 0:00:07]} Nxg2 {[%emt 0:00:18]} 23. Rxe8+ {[%emt 0:00:38]} Nxe8 {[%emt 0:00:02]} 24. Kxg2 {[%emt 0:00:02]} Kf8 {[%emt 0:00:35]} 25. g5 {[%emt 0:01:00]} Qe7 {[%emt 0:00:02]} 26. Kf3 {[%emt 0:00:13]} Qd7 {[%emt 0:00:29]} 27. Qb6 {[%emt 0:03:46]} Qxf5 {[%emt 0:00:29]} 28. Ne4 {[%emt 0:00:13]} Qxh3+ {[%emt 0:00:08]} 29. Ng3 {[%emt 0:00:04]} h5 {[%emt 0:00:48]} 30. gxh6 {[%emt 0:00:06]} gxh6 {[%emt 0:00:02]} 31. Qxa5 {[%emt 0:00:20]} Nf6 {[%emt 0:00:01]} 32. Qd8+ {[%emt 0:00:24]} Kg7 {[%emt 0:00:02]} 33. Kf2 {[%emt 0:02:09]} h5 {[%emt 0:00:09]} 34. Qa5 {[%emt 0:00:05]} Qg4 {[%emt 0:00:43]} 35. Qg5+ {[%emt 0:00:32]} Qxg5 {[%emt 0:00:06]} 36. fxg5 {[%emt 0:00:02]} Ng4+ {[%emt 0:00:02]} 37. Kf3 {[%emt 0:01:11]} Kg6 {[%emt 0:00:03]} 38. Kf4 {[%emt 0:00:11]} Ne5 {[%emt 0:00:02]} 39. b3 {[%emt 0:00:26]} Nd3+ {[%emt 0:00:02]} 40. Ke3 {[%emt 0:00:07]} Nc5 {[%emt 0:00:08]} 41. b4 {[%emt 0:00:10]} Na6 {[%emt 0:00:51]} 42. b5 {[%emt 0:00:10]} Nc5 {[%emt 0:00:17]} 43. Ne2 {[%emt 0:00:15]} cxb5 {[%emt 0:00:09]} 44. cxb5 {[%emt 0:00:03]} Kxg5 {[%emt 0:00:02]} 45. Nc3 {[%emt 0:00:21]} f5 {[%emt 0:00:54]} 46. a4 {[%emt 0:00:01]} Kg4 {[%emt 0:00:03]} 47. a5 {[%emt 0:00:05]} h4 {[%emt 0:00:05]} 48. Kf2 {[%emt 0:00:30]} h3 {[%emt 0:00:06]} 49. Kg1 {[%emt 0:00:04]} f4 {[%emt 0:00:06]} 50. Ne2 {[%emt 0:00:22]} f3 {[%emt 0:00:32]} 51. Nc3 {[%emt 0:00:05]} Kg3 {[%emt 0:00:10]} 52. Nd1 {[%emt 0:00:19]} h2+ {[%emt 0:00:02]} 53. Kh1 {[%emt 0:00:02]} Ne4 {[%emt 0:00:02]} 54. a6 {[%emt 0:00:04]} Kh3 {[%emt 0:00:08]} 0-1

[Event "29th Czech Open-Rapid 2018"]
[Site "Pardubice"]
[Date "2018.07.18"]
[Round "3"]
[White "Turner, Jan"]
[Black "Kukelko, Alexey"]
[Result "0-1"]
[ECO "A01"]
[WhiteElo "2348"]
[BlackElo "2196"]
[Annotator "NA"]
[PlyCount "84"]
[EventDate "2018.07.18"]
[EventType "swiss"]
[EventCountry "CZE"]
[SourceTitle "playchess.com"]
[Source "ChessBase"]
[SourceQuality "1"]
[TimeControl "900+10"]

1. b3 {[%emt 0:00:00]} d5 {[%emt 0:00:00]} 2. Bb2 {[%emt 0:00:00]} Bg4 {[%emt 0:00:00]} 3. g3 {[%emt 0:00:10]} Nc6 {[%emt 0:00:19]} 4. Bg2 {[%emt 0:00:03]} Qd7 {[%emt 0:00:00]} 5. h3 {[%emt 0:00:50]} Bf5 {[%emt 0:00:25]} 6. Nf3 {[%emt 0:01:09]} f6 {[%emt 0:01:58]} 7. c4 {[%emt 0:00:47]} d4 {[%emt 0:00:31]} 8. d3 {[%emt 0:00:10]} e5 {[%emt 0:00:01]} 9. Nbd2 {[%emt 0:00:04]} a5 {[%emt 0:00:11]} 10. a3 {[%emt 0:00:03]} Nh6 {[%emt 0:00:34]} 11. Qc2 {[%emt 0:01:13]} Nf7 {[%emt 0:00:08]} 12. h4 {[%emt 0:02:04]} Be7 {[%emt 0:00:25]} 13. Ne4 {[%emt 0:00:36]} O-O {[%emt 0:00:25]} 14. O-O {[%emt 0:00:16]} Be6 {[%emt 0:00:29]} 15. Rad1 {[%emt 0:03:14]} h6 {[%emt 0:00:30]} 16. e3 {[%emt 0:00:54]} f5 {[%emt 0:00:01]} 17. exd4 {[%emt 0:00:01]} fxe4 {[%emt 0:00:09]} 18. d5 {[%emt 0:00:01]} exf3 {[%emt 0:00:10]} 19. dxe6 {[%emt 0:00:11]} Qxe6 {[%emt 0:00:01]} 20. Bxf3 {[%emt 0:00:02]} Bc5 {[%emt 0:00:52]} 21. Kg2 {[%emt 0:00:41]} Kh8 {[%emt 0:00:33]} 22. Rde1 {[%emt 0:00:08]} Qf6 {[%emt 0:00:19]} 23. Bd5 {[%emt 0:00:23]} Nd4 {[%emt 0:01:00]} 24. Bxd4 {[%emt 0:00:20]} Bxd4 {[%emt 0:00:03]} 25. Bxb7 {[%emt 0:00:03]} Rab8 {[%emt 0:00:11]} 26. Be4 {[%emt 0:00:27]} Qb6 {[%emt 0:00:09]} 27. Rb1 {[%emt 0:00:18]} Nd6 {[%emt 0:00:07]} 28. b4 {[%emt 0:00:24]} Nxe4 {[%emt 0:00:02]} 29. dxe4 {[%emt 0:00:01]} axb4 {[%emt 0:00:09]} 30. axb4 {[%emt 0:00:02]} Rf6 {[%emt 0:00:30]} 31. f3 {[%emt 0:00:22]} Ra8 {[%emt 0:00:19]} 32. Rfd1 {[%emt 0:00:32]} Qb7 {[%emt 0:00:15]} 33. Rd2 {[%emt 0:00:20]} Rfa6 {[%emt 0:00:21]} 34. Qd3 {[%emt 0:00:26]} Ra4 {[%emt 0:00:58]} 35. b5 {[%emt 0:00:12]} Qb6 {[%emt 0:00:09]} 36. Rc2 {[%emt 0:00:15]} Qc5 {[%emt 0:00:13]} 37. Qe2 {[%emt 0:00:15]} Ra3 {[%emt 0:00:06]} 38. Rf1 {[%emt 0:00:16]} Re3 {[%emt 0:00:22]} 39. Qd2 {[%emt 0:00:05]} Raa3 {[%emt 0:00:02]} 40. h5 {[%emt 0:00:13]} Red3 {[%emt 0:00:15]} 41. Qe2 {[%emt 0:00:04]} Rdc3 {[%emt 0:00:50]} 42. Rxc3 {[%emt 0:00:06]} Rxc3 {[%emt 0:00:01]} 0-1

[Event "29th Czech Open-Rapid 2018"]
[Site "Pardubice"]
[Date "2018.07.18"]
[Round "3"]
[White "Westerinen, Heikki Mj"]
[Black "Dimitrov, Dejan"]
[Result "1/2-1/2"]
[ECO "B01"]
[WhiteElo "2312"]
[BlackElo "2096"]
[Annotator "NA"]
[PlyCount "95"]
[EventDate "2018.07.18"]
[EventType "swiss"]
[EventCountry "CZE"]
[SourceTitle "playchess.com"]
[Source "ChessBase"]
[SourceQuality "1"]
[TimeControl "900+10"]

1. e4 {[%emt 0:00:00]} d5 {[%emt 0:00:00]} 2. exd5 {[%emt 0:00:00]} Qxd5 {[%emt 0:00:00]} 3. Nc3 {[%emt 0:00:00]} Qd6 {[%emt 0:00:01]} 4. Nf3 {[%emt 0:00:15]} Nf6 {[%emt 0:00:06]} 5. g3 {[%emt 0:00:25]} g6 {[%emt 0:00:21]} 6. Bg2 {[%emt 0:00:03]} Bg7 {[%emt 0:00:57]} 7. O-O {[%emt 0:00:04]} O-O {[%emt 0:00:13]} 8. d4 {[%emt 0:00:19]} c6 {[%emt 0:00:42]} 9. Re1 {[%emt 0:00:11]} Bf5 {[%emt 0:01:42]} 10. Bf4 {[%emt 0:00:15]} Qd8 {[%emt 0:00:09]} 11. Qd2 {[%emt 0:00:11]} Nd5 {[%emt 0:01:00]} 12. Bh6 {[%emt 0:00:36]} Nd7 {[%emt 0:01:03]} 13. Bxg7 {[%emt 0:00:05]} Kxg7 {[%emt 0:00:03]} 14. Ne4 {[%emt 0:00:22]} N7f6 {[%emt 0:01:23]} 15. Nxf6 {[%emt 0:00:14]} Nxf6 {[%emt 0:00:16]} 16. c3 {[%emt 0:01:00]} Be4 {[%emt 0:00:20]} 17. Qf4 {[%emt 0:00:14]} Bd5 {[%emt 0:01:30]} 18. b3 {[%emt 0:00:06]} Re8 {[%emt 0:00:45]} 19. c4 {[%emt 0:00:13]} Bxf3 {[%emt 0:00:16]} 20. Bxf3 {[%emt 0:00:04]} Qd6 {[%emt 0:00:35]} 21. Re5 {[%emt 0:01:52]} Nd7 {[%emt 0:00:51]} 22. Re4 {[%emt 0:01:03]} Qxf4 {[%emt 0:00:39]} 23. Rxf4 {[%emt 0:00:04]} e5 {[%emt 0:00:32]} 24. dxe5 {[%emt 0:00:08]} Nxe5 {[%emt 0:00:05]} 25. Be2 {[%emt 0:00:28]} Rad8 {[%emt 0:00:28]} 26. Re4 {[%emt 0:00:20]} Nd7 {[%emt 0:01:38]} 27. Rxe8 {[%emt 0:00:39]} Rxe8 {[%emt 0:00:01]} 28. Kf1 {[%emt 0:00:06]} a5 {[%emt 0:00:35]} 29. f4 {[%emt 0:00:27]} Nc5 {[%emt 0:00:08]} 30. Bf3 {[%emt 0:00:17]} Re3 {[%emt 0:00:44]} 31. Bg2 {[%emt 0:01:13]} Kf6 {[%emt 0:00:28]} 32. Rd1 {[%emt 0:00:11]} Rd3 {[%emt 0:00:19]} 33. Re1 {[%emt 0:00:55]} Rd2 {[%emt 0:00:22]} 34. Re5 {[%emt 0:00:13]} b6 {[%emt 0:00:45]} 35. Bxc6 {[%emt 0:00:31]} Rxa2 {[%emt 0:00:17]} 36. h4 {[%emt 0:00:07]} Nxb3 {[%emt 0:00:22]} 37. Bd5 {[%emt 0:01:03]} Nc5 {[%emt 0:00:17]} 38. g4 {[%emt 0:00:07]} Nd3 {[%emt 0:00:26]} 39. g5+ {[%emt 0:00:05]} Kg7 {[%emt 0:00:01]} 40. Re7 {[%emt 0:00:24]} Rf2+ {[%emt 0:00:06]} 41. Kg1 {[%emt 0:00:01]} Rxf4 {[%emt 0:00:02]} 42. Rb7 {[%emt 0:00:08]} Ne5 {[%emt 0:00:24]} 43. Rxb6 {[%emt 0:00:26]} Nxc4 {[%emt 0:00:22]} 44. Rf6 {[%emt 0:00:10]} Rxf6 {[%emt 0:00:28]} 45. gxf6+ {[%emt 0:00:02]} Kxf6 {[%emt 0:00:02]} 46. Bxc4 {[%emt 0:00:02]} g5 {[%emt 0:00:28]} 47. hxg5+ {[%emt 0:00:05]} Kxg5 {[%emt 0:00:03]} 48. Bxf7 {[%emt 0:00:02]} 1/2-1/2

[Event "29th Czech Open-Rapid 2018"]
[Site "Pardubice"]
[Date "2018.07.18"]
[Round "3"]
[White "Nun, Jiri"]
[Black "Kyrychenko, Maryan"]
[Result "1/2-1/2"]
[ECO "B50"]
[WhiteElo "2306"]
[BlackElo "2152"]
[Annotator "NA"]
[PlyCount "68"]
[EventDate "2018.07.18"]
[EventType "swiss"]
[EventCountry "CZE"]
[SourceTitle "playchess.com"]
[Source "ChessBase"]
[SourceQuality "1"]
[TimeControl "900+10"]

1. e4 {[%emt 0:00:00]} c5 {[%emt 0:00:00]} 2. Nf3 {[%emt 0:00:00]} d6 {[%emt 0:00:00]} 3. c3 {[%emt 0:00:01]} Nf6 {[%emt 0:00:00]} 4. h3 {[%emt 0:00:03]} Nc6 {[%emt 0:00:00]} 5. d4 {[%emt 0:00:16]} cxd4 {[%emt 0:00:13]} 6. cxd4 {[%emt 0:01:07]} Nxe4 {[%emt 0:00:04]} 7. d5 {[%emt 0:00:01]} Qa5+ {[%emt 0:00:01]} 8. Nc3 {[%emt 0:00:03]} Nxc3 {[%emt 0:00:18]} 9. bxc3 {[%emt 0:00:02]} Ne5 {[%emt 0:00:01]} 10. Qb3 {[%emt 0:01:55]} Nxf3+ {[%emt 0:00:21]} 11. gxf3 {[%emt 0:00:01]} a6 {[%emt 0:00:14]} 12. Be3 {[%emt 0:00:13]} b5 {[%emt 0:00:34]} 13. Bd3 {[%emt 0:00:04]} g6 {[%emt 0:00:06]} 14. Bd4 {[%emt 0:00:02]} Rg8 {[%emt 0:00:12]} 15. h4 {[%emt 0:00:18]} Bf5 {[%emt 0:00:06]} 16. Be4 {[%emt 0:00:41]} Rc8 {[%emt 0:00:46]} 17. O-O {[%emt 0:00:24]} Bg7 {[%emt 0:00:50]} 18. a4 {[%emt 0:00:38]} Bxd4 {[%emt 0:00:07]} 19. cxd4 {[%emt 0:00:11]} b4 {[%emt 0:00:01]} 20. Rac1 {[%emt 0:00:09]} Kd7 {[%emt 0:00:03]} 21. Rfe1 {[%emt 0:00:50]} Bxe4 {[%emt 0:00:22]} 22. fxe4 {[%emt 0:00:32]} Qb6 {[%emt 0:00:13]} 23. Qh3+ {[%emt 0:00:26]} f5 {[%emt 0:00:35]} 24. Qe3 {[%emt 0:01:16]} Rxc1 25. Rxc1 {[%emt 0:00:03]} Rc8 {[%emt 0:00:51]} 26. Re1 {[%emt 0:00:45]} Rc3 {[%emt 0:00:03]} 27. Qd2 {[%emt 0:00:02]} Rc4 {[%emt 0:00:56]} 28. Rd1 {[%emt 0:01:27]} b3 {[%emt 0:01:47]} 29. exf5 {[%emt 0:00:04]} b2 {[%emt 0:00:40]} 30. Rb1 {[%emt 0:00:59]} Rxd4 {[%emt 0:00:06]} 31. Qe2 {[%emt 0:00:01]} Rxh4 {[%emt 0:02:45]} 32. Rxb2 {[%emt 0:00:24]} Qc7 {[%emt 0:04:38]} 33. Qe6+ {[%emt 0:04:06]} Kd8 {[%emt 0:00:01]} 34. Qg8+ {[%emt 0:00:05]} Kd7 1/2-1/2

[Event "29th Czech Open-Rapid 2018"]
[Site "Pardubice"]
[Date "2018.07.18"]
[Round "3"]
[White "Meleshko, Vladimir"]
[Black "Maslak, Alexander"]
[Result "1-0"]
[ECO "B39"]
[WhiteElo "2268"]
[BlackElo "2154"]
[Annotator "NA"]
[PlyCount "47"]
[EventDate "2018.07.18"]
[EventType "swiss"]
[EventCountry "CZE"]
[SourceTitle "playchess.com"]
[Source "ChessBase"]
[SourceQuality "1"]
[TimeControl "900+10"]

1. e4 {[%emt 0:00:00]} c5 {[%emt 0:00:00]} 2. Nf3 {[%emt 0:00:00]} Nc6 {[%emt 0:00:00]} 3. d4 {[%emt 0:00:02]} cxd4 {[%emt 0:00:00]} 4. Nxd4 {[%emt 0:00:02]} g6 {[%emt 0:00:03]} 5. c4 {[%emt 0:01:38]} Bg7 {[%emt 0:00:04]} 6. Be3 {[%emt 0:00:02]} Nf6 {[%emt 0:00:01]} 7. Nc3 {[%emt 0:00:03]} Ng4 {[%emt 0:00:02]} 8. Qxg4 {[%emt 0:00:05]} Nxd4 {[%emt 0:00:03]} 9. Qd1 {[%emt 0:00:07]} Ne6 {[%emt 0:00:02]} 10. Be2 {[%emt 0:01:05]} Qa5 {[%emt 0:00:09]} 11. O-O {[%emt 0:00:12]} g5 {[%emt 0:01:46]} 12. Bg4 {[%emt 0:02:44]} Be5 {[%emt 0:02:03]} 13. Nd5 {[%emt 0:00:41]} Bxb2 {[%emt 0:00:43]} 14. Rb1 {[%emt 0:00:17]} Be5 {[%emt 0:00:03]} 15. Rb5 {[%emt 0:01:06]} Qd8 {[%emt 0:00:42]} 16. Nxe7 {[%emt 0:00:18]} Bxh2+ {[%emt 0:00:54]} 17. Kxh2 {[%emt 0:00:01]} Qxe7 {[%emt 0:00:01]} 18. Bxe6 {[%emt 0:00:55]} fxe6 {[%emt 0:04:43]} 19. Bxg5 {[%emt 0:00:24]} Qf7 {[%emt 0:00:02]} 20. Qd6 {[%emt 0:01:45]} a6 {[%emt 0:01:12]} 21. Rc5 {[%emt 0:00:30]} b5 {[%emt 0:03:23]} 22. Qb6 {[%emt 0:01:18]} Qh5+ {[%emt 0:00:55]} 23. Kg1 {[%emt 0:00:03]} O-O {[%emt 0:00:04]} 24. Be7 {[%emt 0:00:31]} 1-0

[Event "29th Czech Open-Rapid 2018"]
[Site "Pardubice"]
[Date "2018.07.18"]
[Round "3"]
[White "Tsvetkov, Andrey"]
[Black "Trost, Edvin"]
[Result "1-0"]
[ECO "A59"]
[WhiteElo "2259"]
[BlackElo "1925"]
[Annotator "NA"]
[PlyCount "103"]
[EventDate "2018.07.18"]
[EventType "swiss"]
[EventCountry "CZE"]
[SourceTitle "playchess.com"]
[Source "ChessBase"]
[SourceQuality "1"]
[TimeControl "900+10"]

1. d4 {[%emt 0:00:00]} Nf6 {[%emt 0:00:00]} 2. c4 {[%emt 0:00:00]} c5 {[%emt 0:00:00]} 3. d5 b5 {[%emt 0:00:00]} 4. cxb5 {[%emt 0:00:00]} a6 {[%emt 0:00:00]} 5. bxa6 {[%emt 0:00:00]} Bxa6 {[%emt 0:00:00]} 6. Nc3 {[%emt 0:00:00]} d6 {[%emt 0:00:00]} 7. e4 {[%emt 0:00:00]} Bxf1 {[%emt 0:00:00]} 8. Kxf1 {[%emt 0:00:00]} g6 9. g3 Bg7 {[%emt 0:00:03]} 10. Kg2 {[%emt 0:00:00]} O-O {[%emt 0:00:02]} 11. Nf3 {[%emt 0:00:00]} Nbd7 12. a4 Ra6 {[%emt 0:00:04]} 13. Qc2 {[%emt 0:00:06]} Qa8 {[%emt 0:00:03]} 14. Nb5 {[%emt 0:00:22]} Rc8 {[%emt 0:00:09]} 15. Bd2 {[%emt 0:00:13]} c4 {[%emt 0:00:17]} 16. Nfd4 {[%emt 0:00:50]} Nc5 {[%emt 0:00:10]} 17. Nc6 {[%emt 0:00:02]} Kf8 {[%emt 0:00:35]} 18. Qxc4 {[%emt 0:00:48]} Ncxe4 {[%emt 0:02:10]} 19. Bb4 {[%emt 0:04:09]} Nxd5 {[%emt 0:00:40]} 20. Qxd5 {[%emt 0:00:01]} Qxc6 {[%emt 0:00:02]} 21. Rac1 {[%emt 0:00:01]} Nc5 {[%emt 0:00:17]} 22. Qxc6 {[%emt 0:00:01]} Raxc6 {[%emt 0:00:12]} 23. Na7 {[%emt 0:00:05]} Bxb2 {[%emt 0:00:13]} 24. Rc2 {[%emt 0:00:10]} Bd4 {[%emt 0:00:42]} 25. Rd1 {[%emt 0:00:47]} Bf6 {[%emt 0:00:06]} 26. Nxc8 {[%emt 0:00:43]} Rxc8 {[%emt 0:00:01]} 27. Bxc5 {[%emt 0:00:01]} dxc5 {[%emt 0:00:05]} 28. Rc4 {[%emt 0:01:20]} e6 {[%emt 0:04:11]} 29. Rd7 {[%emt 0:00:15]} Bd8 {[%emt 0:02:29]} 30. Rb7 {[%emt 0:00:18]} Ke8 {[%emt 0:00:21]} 31. Rb5 {[%emt 0:00:32]} Be7 {[%emt 0:00:08]} 32. a5 {[%emt 0:00:01]} Kd7 {[%emt 0:00:05]} 33. Rb7+ {[%emt 0:00:06]} Rc7 {[%emt 0:00:03]} 34. Rxc7+ {[%emt 0:00:40]} Kxc7 {[%emt 0:00:00]} 35. Kf3 {[%emt 0:00:01]} Kb7 {[%emt 0:00:35]} 36. Ke4 {[%emt 0:00:30]} Bd6 {[%emt 0:00:01]} 37. Ra4 {[%emt 0:00:06]} Ka6 {[%emt 0:00:03]} 38. Kd3 {[%emt 0:00:02]} h5 {[%emt 0:01:36]} 39. Kc4 {[%emt 0:00:01]} Be7 {[%emt 0:00:06]} 40. h4 {[%emt 0:00:04]} Bd6 {[%emt 0:00:11]} 41. Ra1 {[%emt 0:00:03]} f5 {[%emt 0:00:21]} 42. Rd1 {[%emt 0:00:06]} Bf8 {[%emt 0:00:17]} 43. Rd8 {[%emt 0:00:02]} Bg7 {[%emt 0:00:28]} 44. Ra8+ {[%emt 0:00:04]} Kb7 {[%emt 0:00:02]} 45. Re8 {[%emt 0:00:01]} Bd4 {[%emt 0:00:08]} 46. Rxe6 {[%emt 0:00:07]} Bxf2 {[%emt 0:00:03]} 47. Rxg6 {[%emt 0:00:02]} f4 {[%emt 0:00:37]} 48. gxf4 {[%emt 0:00:02]} Bxh4 {[%emt 0:00:01]} 49. Kb5 {[%emt 0:00:00]} Bd8 {[%emt 0:00:20]} 50. Rg7+ {[%emt 0:00:05]} Kc8 {[%emt 0:00:26]} 51. a6 {[%emt 0:00:03]} Kb8 {[%emt 0:00:05]} 52. Rg8 {[%emt 0:00:01]} 1-0